fUST/lending_fUST_20250804
["ID","MTS","AMOUNT","RATE_DAILY","PERIOD"]
[377285222,1754319936101,-500.0,0.00030299,2]
[377285223,1754319936139,-584.35555033,0.00030299,2]
[377285224,1754319936169,-500.0,0.00030299,2]
[377285225,1754319936202,-500.0,0.00030299,2]
[377285226,1754319936238,-525.30710495,0.00030299,2]
[377285227,1754319936271,-500.0,0.00030299,2]
[377285228,1754319936304,-500.0,0.00030299,2]
[377285229,1754319936335,-500.0,0.00030299,2]
[377285230,1754319936368,-500.0,0.00030299,2]
[377285231,1754319936401,-500.0,0.00030299,2]
[377285232,1754319936436,-525.30710495,0.00030299,2]
[377285233,1754319936467,-500.0,0.00030299,2]
[377285234,1754319936497,-316.63016316,0.00030299,2]
[377285235,1754319936528,-500.0,0.00030299,2]
[377285236,1754319936558,-500.0,0.00030299,2]
[377285237,1754319936592,-525.30710495,0.00030299,2]
[377285238,1754319936627,-500.0,0.00030299,2]
[377285239,1754319936660,-203.25219352,0.00030299,2]
[377285240,1754319937140,-296.74780648,0.00030299,2]
[377285241,1754319937172,-218.97150278,0.00030299,2]
[377285242,1754319937206,-500.0,0.00030299,2]
[377285243,1754319937242,-525.30710495,0.00030299,2]
[377285244,1754319937272,-500.0,0.00030299,2]
[377285245,1754319937302,-500.0,0.00030299,2]
[377285246,1754319937334,-500.0,0.00030299,2]
[377285247,1754319937367,-500.0,0.00030299,2]
[377285248,1754319937403,-500.0,0.00030299,2]
[377285249,1754319937437,-525.30710495,0.00030299,2]
[377285250,1754319937469,-500.0,0.00030299,2]
[377285251,1754319937503,-500.0,0.00030299,2]
[377285252,1754319937538,-500.0,0.00030299,2]
[377285253,1754319937570,-500.0,0.00030299,2]
[377285254,1754319937607,-525.30710495,0.00030299,2]
[377285255,1754319937640,-500.0,0.00030299,2]
[377285256,1754319937672,-500.0,0.00030299,2]
[377285257,1754319937703,-500.0,0.00030299,2]
[377285258,1754319937736,-500.0,0.00030299,2]
[377285259,1754319937767,-500.0,0.00030299,2]
[377285260,1754319937802,-291.41164683,0.00030299,2]
[377285261,1754319937975,-233.89545812,0.00030299,2]
[377285262,1754319938006,-500.0,0.00030299,2]
[377285263,1754319938038,-500.0,0.00030299,2]
[377285264,1754319938069,-500.0,0.00030299,2]
[377285265,1754319938100,-500.0,0.00030299,2]
[377285266,1754319938138,-525.30710495,0.00030299,2]
[377285267,1754319938170,-500.0,0.00030299,2]
[377285268,1754319938204,-500.0,0.00030299,2]
[377285269,1754319938234,-500.0,0.00030299,2]
[377285270,1754319938268,-525.30710495,0.00030299,2]
[377285271,1754319938299,-500.0,0.00030299,2]
[377285272,1754319938338,-525.30710495,0.00030299,2]
[377285273,1754319938380,-500.0,0.00030299,2]
[377285274,1754319938417,-500.0,0.00030299,2]
[377285275,1754319938459,-525.30710495,0.00030299,2]
[377285276,1754319938500,-500.0,0.00030299,2]
[377285277,1754319938542,-525.30710495,0.00030299,2]
[377285278,1754319938582,-500.0,0.00030299,2]
[377285279,1754319938621,-500.0,0.00030299,2]
[377285280,1754319938665,-525.30710495,0.00030299,2]
[377285281,1754319938723,-500.0,0.00030299,2]
[377285282,1754319938765,-525.30710495,0.00030299,2]
[377285283,1754319938808,-525.30710495,0.00030299,2]
[377285284,1754319938853,-525.30710495,0.00030299,2]
[377285285,1754319938897,-500.0,0.00030299,2]
[377285286,1754319938934,-525.30710495,0.00030299,2]
[377285287,1754319938972,-500.0,0.00030299,2]
[377285288,1754319939021,-525.30710495,0.00030299,2]
[377285289,1754319939057,-500.0,0.00030299,2]
[377285290,1754319939098,-525.30710495,0.00030299,2]
[377285291,1754319939139,-500.0,0.00030299,2]
[377285292,1754319939180,-525.30710495,0.00030299,2]
[377285293,1754319939219,-500.0,0.00030299,2]
[377285294,1754319939258,-525.30710495,0.00030299,2]
[377285295,1754319939294,-500.0,0.00030299,2]
[377285296,1754319939334,-525.30710495,0.00030299,2]
[377285297,1754319939372,-381.44401419,0.00030299,2]
[377285298,1754319939411,-525.30710495,0.00030299,2]
[377285299,1754319939451,-525.30710495,0.00030299,2]
[377285300,1754319939490,-155.04855777,0.00030299,2]
[377285301,1754319939533,-370.25854718,0.00030299,2]
[377285302,1754319939573,-525.30710495,0.00030299,2]
[377285303,1754319939609,-500.0,0.00030299,2]
[377285304,1754319939649,-525.30710495,0.00030299,2]
[377285305,1754319939688,-525.30710495,0.00030299,2]
[377285306,1754319939728,-525.30710495,0.00030299,2]
[377285307,1754319939768,-525.30710495,0.00030299,2]
[377285308,1754319939811,-525.30710495,0.00030299,2]
[377285309,1754319939851,-525.30710495,0.00030299,2]
[377285310,1754319939889,-500.0,0.00030299,2]
[377285311,1754319939932,-525.30710495,0.00030299,2]
[377285312,1754319939973,-525.30710495,0.00030299,2]
[377285313,1754319940014,-525.30710495,0.00030299,2]
[377285314,1754319940055,-525.30710495,0.00030299,2]
[377285315,1754319940264,-525.30710495,0.00030299,2]
[377285316,1754319940307,-500.0,0.00030299,2]
[377285317,1754319940341,-525.30710495,0.00030299,2]
[377285318,1754319940377,-525.30710495,0.00030299,2]
[377285319,1754319940413,-525.30710495,0.00030299,2]
[377285320,1754319940653,-525.30710495,0.00030299,2]
[377285321,1754319940689,-525.30710495,0.00030299,2]
[377285322,1754319940724,-525.30710495,0.00030299,2]
[377285323,1754319940755,-500.0,0.00030299,2]
[377285324,1754319940786,-500.0,0.00030299,2]
[377285325,1754319940817,-500.0,0.00030299,2]
[377285326,1754319940847,-500.0,0.00030299,2]
[377285327,1754319940879,-500.0,0.00030299,2]
[377285328,1754319940911,-528.78963781,0.00030299,2]
[377285329,1754319940942,-500.0,0.00030299,2]
[377285330,1754319940972,-500.0,0.00030299,2]
[377285331,1754319941004,-500.0,0.00030299,2]
[377285332,1754319941037,-500.0,0.00030299,2]
[377285333,1754319941068,-500.0,0.00030299,2]
[377285334,1754319941099,-500.0,0.00030299,2]
[377285335,1754319941135,-500.0,0.00030299,2]
[377285336,1754319941166,-500.0,0.00030299,2]
[377285337,1754319941197,-500.0,0.00030299,2]
[377285338,1754319941228,-249.95398564,0.00030299,2]
[377285339,1754319941258,-500.0,0.00030299,2]
[377285340,1754319941733,-500.0,0.00030299,2]
[377285341,1754319941768,-500.0,0.00030299,2]
[377285342,1754319941803,-500.0,0.00030299,2]
[377285343,1754319941851,-1031.91021767,0.00030299,2]
[377285344,1754319941913,-1031.91021767,0.00030299,2]
[377285345,1754319941952,-1031.91021767,0.00030299,2]
[377285346,1754319941990,-1031.91021767,0.00030299,2]
[377285347,1754319942032,-1031.91021767,0.00030299,2]
[377285348,1754319942067,-1031.91021767,0.00030299,2]
[377285349,1754319942101,-1031.91021767,0.00030299,2]
[377285350,1754319942144,-1031.91021767,0.00030299,2]
[377285351,1754319942546,-1031.91021767,0.00030299,2]
[377285352,1754319942581,-1031.91021767,0.00030299,2]
[377285353,1754319942617,-1031.91021767,0.00030299,2]
[377285354,1754319942656,-1031.91021767,0.00030299,2]
[377285355,1754319942690,-1031.91021767,0.00030299,2]
[377285356,1754319942725,-1031.91021767,0.00030299,2]
[377285357,1754319942759,-1031.91021767,0.00030299,2]
[377285358,1754319942793,-1031.91021767,0.00030299,2]
[377285359,1754319942826,-1031.91021767,0.00030299,2]
[377285360,1754319942860,-393.70586427,0.00030299,2]
[377285361,1754319943931,5000.0,0.0003,2]
[377285363,1754319949917,2000.0,0.00030274,30]
[377285364,1754319952759,5000.0,0.0003,2]
[377285365,1754319963730,-184.38411863,0.00030198,2]
[377285366,1754319967757,-168.43393704,0.00030198,2]
[377285367,1754319968696,5000.0,0.0003,2]
[377285368,1754319969298,-47.18194433,0.00030198,2]
[377285369,1754319969322,-174.97466553,0.00030199,2]
[377285370,1754319974343,-300.0,0.00030137,30]
[377285371,1754319977643,-316.20426408,0.00030137,30]
[377285372,1754319982071,-193.20518902,0.00030137,30]
[377285373,1754319984158,5000.0,0.0003,2]
[377285374,1754319985764,-218.61291664,0.00030137,30]
[377285375,1754319987914,-269.22589444,0.00030137,30]
[377285376,1754319990656,-73.60173582,0.00030137,30]
[377285377,1754319990681,-173.27798758,0.00030189,2]
[377285378,1754319992325,-265.74370836,0.00030189,2]
[377285379,1754319996292,-258.49262457,0.00030189,2]
[377285380,1754319998449,343.05,0.00027835,15]
[377285381,1754319998526,343.05,0.00027535,15]
[377285382,1754319998559,-303.49802598,0.00030189,2]
[377285383,1754319998681,343.05,0.00028035,15]
[377285384,1754319998991,343.05,0.00028435,15]
[377285385,1754319999283,343.05,0.00028535,15]
[377285386,1754319999348,343.05,0.00028635,15]
[377285387,1754319999414,343.05,0.00028735,15]
[377285388,1754319999447,5000.0,0.0003,2]
[377285389,1754319999492,343.05,0.00028835,15]
[377285390,1754319999661,343.05,0.00029035,15]
[377285391,1754319999749,343.05,0.00029135,15]
[377285392,1754319999802,343.05,0.00029235,15]
[377285393,1754319999987,343.05,0.00029335,15]
[377285394,1754320000172,343.05,0.00029635,15]
[377285395,1754320000312,343.05,0.00029735,15]
[377285396,1754320000509,343.05,0.00029835,15]
[377285397,1754320000540,-230.30432666,0.00030189,2]
[377285398,1754320000664,343.05,0.00029935,15]
[377285399,1754320004620,-200.77973979,0.00030135,15]
[377285400,1754320006603,-142.27026021,0.00030135,15]
[377285401,1754320006639,-73.06447479,0.00030189,2]
[377285402,1754320007424,2662.5373772,0.0002918,2]
[377285403,1754320009765,343.05,0.00027735,15]
[377285404,1754320010422,343.05,0.00027635,15]
[377285405,1754320010815,343.05,0.00027935,15]
[377285406,1754320010956,-261.74694461,0.00030189,2]
[377285407,1754320010980,-217.94910055,0.00030198,2]
[377285408,1754320011137,343.05,0.00028335,15]
[377285409,1754320011739,343.05,0.00028135,15]
[377285410,1754320012426,343.05,0.00028235,15]
[377285411,1754320013051,343.05,0.00028935,15]
[377285412,1754320014808,5000.0,0.0003,2]
[377285413,1754320015689,343.05,0.00029535,15]
[377285414,1754320015768,-396.7562394,0.00030198,2]
[377285415,1754320015802,343.05,0.00029435,15]
[377285416,1754320018927,-164.70141543,0.00030035,15]
[377285417,1754320021685,-174.882,0.00030035,15]
[377285418,1754320024877,-3.46658457,0.00030035,15]
[377285419,1754320024903,-154.94342266,0.00030197,2]
[377285420,1754320026425,-156.66390663,0.00030197,2]
[377285421,1754320027945,-88.39267071,0.00030197,2]
[377285422,1754320027970,-73.46607372,0.00030198,2]
[377285423,1754320028414,150.08184751,0.000253,2]
[377285424,1754320030399,-252.32115455,0.00030198,2]
[377285425,1754320030775,5000.0,0.0003,2]
[377285426,1754320032143,154.096408,0.00026362,20]
[377285427,1754320032792,168.0,0.00027,7]
[377285428,1754320034844,-251.64159586,0.00030098,2]
[377285429,1754320037892,-161.5587871,0.00030098,2]
[377285430,1754320047015,5000.0,0.0003,2]
[377285431,1754320062890,5000.0,0.0003,2]
[377285432,1754320072856,24900.0,0.00029155,2]
[377285433,1754320078375,5000.0,0.0003,2]
[377285434,1754320084005,-15789.4763907,0.00030098,2]
[377285435,1754320084320,-3099.39780712,0.00030098,2]
[377285436,1754320084347,-13801.20438576,0.00030098,2]
[377285437,1754320084641,-1218.54,0.00030137,30]
[377285438,1754320084676,-430.17,0.00030188,10]
[377285439,1754320084710,-358.47,0.00030188,10]
[377285440,1754320084743,-659.50743178,0.00030198,2]
[377285441,1754320084776,-293.05291139,0.00030198,2]
[377285442,1754320084808,-500.0,0.00030198,2]
[377285443,1754320084843,-500.0,0.00030198,2]
[377285444,1754320084877,-500.0,0.00030198,2]
[377285445,1754320084908,-635.44127809,0.00030198,2]
[377285446,1754320084940,-500.0,0.00030198,2]
[377285447,1754320084971,-235.17986954,0.00030198,2]
[377285448,1754320085005,-519.40199515,0.00030198,2]
[377285449,1754320085038,-169.86551531,0.00030198,2]
[377285450,1754320085080,-500.0,0.00030198,2]
[377285451,1754320085113,-584.41540449,0.00030198,2]
[377285452,1754320085145,-361.1059984,0.00030198,2]
[377285453,1754320085181,-500.0,0.00030198,2]
[377285454,1754320085216,-519.40199515,0.00030198,2]
[377285455,1754320085257,-500.0,0.00030198,2]
[377285456,1754320085292,-500.0,0.00030198,2]
[377285457,1754320085461,-519.40199515,0.00030198,2]
[377285458,1754320085499,-500.0,0.00030198,2]
[377285459,1754320085534,-500.0,0.00030198,2]
[377285460,1754320085575,-500.0,0.00030198,2]
[377285461,1754320085612,-500.0,0.00030198,2]
[377285462,1754320085646,-519.40199515,0.00030198,2]
[377285463,1754320085681,-519.40199515,0.00030198,2]
[377285464,1754320085719,-500.0,0.00030198,2]
[377285465,1754320085756,-500.0,0.00030198,2]
[377285466,1754320085791,-519.40199515,0.00030198,2]
[377285467,1754320085829,-500.0,0.00030198,2]
[377285468,1754320085862,-500.0,0.00030198,2]
[377285469,1754320085898,-519.40199515,0.00030198,2]
[377285470,1754320085937,-500.0,0.00030198,2]
[377285471,1754320085970,-519.40199515,0.00030198,2]
[377285472,1754320086006,-309.34776569,0.00030198,2]
[377285473,1754320086044,-500.0,0.00030198,2]
[377285474,1754320086079,-519.40199515,0.00030198,2]
[377285475,1754320086119,-500.0,0.00030198,2]
[377285476,1754320086154,-519.40199515,0.00030198,2]
[377285477,1754320086373,-500.0,0.00030198,2]
[377285478,1754320086406,-519.40199515,0.00030198,2]
[377285479,1754320086443,-500.0,0.00030198,2]
[377285480,1754320086476,-519.40199515,0.00030198,2]
[377285481,1754320086512,-500.0,0.00030198,2]
[377285482,1754320086545,-519.40199515,0.00030198,2]
[377285483,1754320086577,-519.40199515,0.00030198,2]
[377285484,1754320086612,-500.0,0.00030198,2]
[377285485,1754320086648,-500.0,0.00030198,2]
[377285486,1754320086682,-519.40199515,0.00030198,2]
[377285487,1754320086720,-500.0,0.00030198,2]
[377285488,1754320086753,-519.40199515,0.00030198,2]
[377285489,1754320086785,-519.40199515,0.00030198,2]
[377285490,1754320086822,-500.0,0.00030198,2]
[377285491,1754320086860,-519.40199515,0.00030198,2]
[377285492,1754320086903,-500.0,0.00030198,2]
[377285493,1754320086939,-500.0,0.00030198,2]
[377285494,1754320086972,-519.40199515,0.00030198,2]
[377285495,1754320087012,-500.0,0.00030198,2]
[377285496,1754320087045,-131.36209215,0.00030198,2]
[377285497,1754320087415,-388.039903,0.00030198,2]
[377285498,1754320087454,-500.0,0.00030198,2]
[377285499,1754320087490,-519.40199515,0.00030198,2]
[377285500,1754320087528,-500.0,0.00030198,2]
[377285501,1754320087561,-519.40199515,0.00030198,2]
[377285502,1754320087595,-519.40199515,0.00030198,2]
[377285503,1754320087633,-500.0,0.00030198,2]
[377285504,1754320087670,-500.0,0.00030198,2]
[377285505,1754320087704,-519.40199515,0.00030198,2]
[377285506,1754320087743,-500.0,0.00030198,2]
[377285507,1754320087778,-519.40199515,0.00030198,2]
[377285508,1754320087815,-500.0,0.00030198,2]
[377285509,1754320087849,-519.40199515,0.00030198,2]
[377285510,1754320087887,-500.0,0.00030198,2]
[377285511,1754320087927,-519.40199515,0.00030198,2]
[377285512,1754320087965,-500.0,0.00030198,2]
[377285513,1754320088000,-519.40199515,0.00030198,2]
[377285514,1754320088033,-519.40199515,0.00030198,2]
[377285515,1754320088070,-500.0,0.00030198,2]
[377285516,1754320088106,-355.28228615,0.00030198,2]
[377285517,1754320088353,-164.119709,0.00030198,2]
[377285518,1754320088394,-500.0,0.00030198,2]
[377285519,1754320088430,-500.0,0.00030198,2]
[377285520,1754320088463,-519.40199515,0.00030198,2]
[377285521,1754320088496,-519.40199515,0.00030198,2]
[377285522,1754320088535,-500.0,0.00030198,2]
[377285523,1754320088575,-500.0,0.00030198,2]
[377285524,1754320088609,-519.40199515,0.00030198,2]
[377285525,1754320088647,-500.0,0.00030198,2]
[377285526,1754320088680,-519.40199515,0.00030198,2]
[377285527,1754320088713,-519.40199515,0.00030198,2]
[377285528,1754320088750,-500.0,0.00030198,2]
[377285529,1754320088788,-500.0,0.00030198,2]
[377285530,1754320088821,-519.40199515,0.00030198,2]
[377285531,1754320088854,-519.40199515,0.00030198,2]
[377285532,1754320088886,-519.40199515,0.00030198,2]
[377285533,1754320088919,-519.40199515,0.00030198,2]
[377285534,1754320088952,-519.40199515,0.00030198,2]
[377285535,1754320088985,-519.40199515,0.00030198,2]
[377285536,1754320089019,-519.40199515,0.00030198,2]
[377285537,1754320089248,-519.40199515,0.00030198,2]
[377285538,1754320089283,-519.40199515,0.00030198,2]
[377285539,1754320089316,-519.40199515,0.00030198,2]
[377285540,1754320089348,-519.40199515,0.00030198,2]
[377285541,1754320089380,-519.40199515,0.00030198,2]
[377285542,1754320089413,-519.40199515,0.00030198,2]
[377285543,1754320089446,-519.40199515,0.00030198,2]
[377285544,1754320089480,-519.40199515,0.00030198,2]
[377285545,1754320089513,-519.40199515,0.00030198,2]
[377285546,1754320089546,-519.40199515,0.00030198,2]
[377285547,1754320089580,-519.40199515,0.00030198,2]
[377285548,1754320089612,-519.40199515,0.00030198,2]
[377285549,1754320089644,-519.40199515,0.00030198,2]
[377285550,1754320089678,-519.40199515,0.00030198,2]
[377285551,1754320089712,-519.40199515,0.00030198,2]
[377285552,1754320089745,-519.40199515,0.00030198,2]
[377285553,1754320089780,-519.40199515,0.00030198,2]
[377285554,1754320089814,-519.40199515,0.00030198,2]
[377285555,1754320089847,-519.40199515,0.00030198,2]
[377285556,1754320090276,-519.40199515,0.00030198,2]
[377285557,1754320090309,-519.40199515,0.00030198,2]
[377285558,1754320090342,-519.40199515,0.00030198,2]
[377285559,1754320090376,-519.40199515,0.00030198,2]
[377285560,1754320090410,-519.40199515,0.00030198,2]
[377285561,1754320090442,-519.40199515,0.00030198,2]
[377285562,1754320090475,-519.40199515,0.00030198,2]
[377285563,1754320090508,-519.40199515,0.00030198,2]
[377285564,1754320090541,-519.40199515,0.00030198,2]
[377285565,1754320090574,-945.68133016,0.00030198,2]
[377285566,1754320090609,-945.68133016,0.00030198,2]
[377285567,1754320090644,-945.68133016,0.00030198,2]
[377285568,1754320090677,-945.68133016,0.00030198,2]
[377285569,1754320090712,-945.68133016,0.00030198,2]
[377285570,1754320090749,-248.26945554,0.00030198,2]
[377285571,1754320090926,-697.41187462,0.00030198,2]
[377285572,1754320090960,-945.68133016,0.00030198,2]
[377285573,1754320090994,-945.68133016,0.00030198,2]
[377285574,1754320091029,-945.68133016,0.00030198,2]
[377285575,1754320091066,-945.68133016,0.00030198,2]
[377285576,1754320091101,-945.68133016,0.00030198,2]
[377285577,1754320091135,-945.68133016,0.00030198,2]
[377285578,1754320091170,-945.68133016,0.00030198,2]
[377285579,1754320091203,-945.68133016,0.00030198,2]
[377285580,1754320091237,-945.68133016,0.00030198,2]
[377285581,1754320091271,-637.23097772,0.00030198,2]
[377285582,1754320091367,-308.45035244,0.00030198,2]
[377285583,1754320091401,-945.68133016,0.00030198,2]
[377285584,1754320091434,-945.68133016,0.00030198,2]
[377285585,1754320091468,-945.68133016,0.00030198,2]
[377285586,1754320095572,-298.73,0.00030188,10]
[377285587,1754320095584,-551.88168296,0.00030198,2]
[377285588,1754320095604,-945.68133016,0.00030198,2]
[377285589,1754320095625,-945.68133016,0.00030198,2]
[377285590,1754320095645,-13709.01131416,0.00030198,2]
[377285591,1754320095665,-8009.72980052,0.00030198,2]
[377285592,1754320095677,-500.0,0.00030198,2]
[377285593,1754320095688,-343.05,0.00030235,15]
[377285594,1754320095700,-374.38980953,0.00030298,2]
[377285595,1754320096222,5000.0,0.0003,2]
[377285596,1754320110159,5000.0,0.0003,2]
[377285597,1754320118079,5000.0,0.0003,2]
[377285598,1754320126272,-1083.14,0.00030137,30]
[377285599,1754320126318,5000.0,0.0003,2]
[377285600,1754320134816,2833.72,0.00030299,2]
[377285601,1754320134841,2166.28,0.00030299,2]
[377285602,1754320143287,251.75196894,0.0003021,2]
[377285603,1754320143636,5000.0,0.00030299,2]
[377285604,1754320150150,154.096408,0.00028558,20]
[377285605,1754320152641,2427.87162306,0.00030299,2]
[377285606,1754320152665,1959.49438068,0.00030299,2]
[377285607,1754320160311,5576.08741323,0.0002821,2]
[377285608,1754320160814,2464.41820609,0.00030299,2]
[377285609,1754320160841,2535.58179391,0.00030299,2]
[377285628,1754320169286,205.76354787,0.00030299,2]
[377285629,1754320177671,5000.0,0.00030299,2]
[377285630,1754320179773,693.302503,0.00029546,2]
[377285631,1754320191144,158.939429,0.00023945,2]
[377285632,1754320191558,1099.792009,0.00025246,2]
[377285633,1754320192550,306.62071722,0.00025507,2]
[377285634,1754320192575,631.74423843,0.00025507,2]
[377285635,1754320192898,469.18247782,0.00028785,2]
[377285636,1754320195329,962.79,0.00030299,30]
[377285637,1754320195608,5000.0,0.00030299,2]
[377285638,1754320212299,2936.28328375,0.00030299,2]
[377285639,1754320212328,2063.71671625,0.00030299,2]
[377285640,1754320222650,209.1890095,0.00029549,2]
[377285641,1754320225758,182.61176556,0.00023671,10]
[377285642,1754320228899,891.50663815,0.0003029,2]
[377285643,1754320230656,5000.0,0.00030299,2]
[377285703,1754320232629,-163.64034672,0.0003031,2]
[377285704,1754320232644,-343.05,0.00030335,15]
[377285705,1754320232653,-276.27566588,0.0003038,2]
[377285706,1754320232663,-252.321,0.0003041,30]
[377285707,1754320232672,-343.05,0.00030435,15]
[377285709,1754320232682,-343.05,0.00030535,15]
[377285711,1754320232691,-175.00958264,0.00030606,2]
[377285713,1754320232701,-962.79,0.00030623,30]
[377285715,1754320232710,-343.05,0.00030635,15]
[377285716,1754320232720,-400.0,0.00030689,2]
[377285719,1754320232729,-1200.0,0.00030689,2]
[377285722,1754320232739,-6765.17048451,0.0003069,2]
[377285725,1754320232748,-343.05,0.00030735,15]
[377285726,1754320232758,-500.0,0.00030759,2]
[377285727,1754320232767,-500.0,0.0003076,2]
[377285729,1754320232776,-500.0,0.00030773,5]
[377285731,1754320232786,-500.0,0.00030773,5]
[377285733,1754320232795,-500.0,0.00030773,5]
[377285735,1754320232804,-500.0,0.00030773,5]
[377285737,1754320232814,-500.0,0.00030773,5]
[377285739,1754320232824,-150.5,0.00030776,120]
[377285741,1754320232833,-150.5,0.00030786,120]
[377285743,1754320232843,-150.5,0.00030796,120]
[377285745,1754320232852,-343.05,0.00030835,15]
[377285747,1754320232862,-2030.296672,0.00030838,2]
[377285749,1754320232871,-506.63006428,0.00030873,5]
[377285751,1754320232883,-707.24623746,0.00030893,2]
[377285753,1754320232893,-1872.68745581,0.000309,23]
[377285755,1754320232903,-343.05,0.00030935,15]
[377285757,1754320232913,-962.79,0.00030947,30]
[377285759,1754320232922,-1000.0,0.00031,2]
[377285761,1754320232932,-500.0,0.00031034,2]
[377285763,1754320232941,-343.05,0.00031035,15]
[377285765,1754320232952,-343.05,0.00031135,15]
[377285767,1754320232961,-343.05,0.00031235,15]
[377285769,1754320232971,-962.79,0.00031271,30]
[377285771,1754320232980,-206.1210399,0.000313,2]
[377285773,1754320232990,-500.0,0.00031308,2]
[377285775,1754320233001,-443.28937339,0.00031321,5]
[377285777,1754320233011,-486.43131281,0.00031321,5]
[377285779,1754320233022,-343.05,0.00031335,15]
[377285781,1754320233032,-192.08564486,0.00031362,2]
[377285783,1754320233043,-192.08564484,0.00031368,2]
[377285785,1754320233053,-192.08564484,0.00031373,2]
[377285787,1754320233063,-343.05,0.00031435,15]
[377285789,1754320233074,-454.65,0.00031442,10]
[377285791,1754320233084,-378.88,0.00031442,10]
[377285793,1754320233094,-315.73,0.00031442,10]
[377285795,1754320233104,-151.0,0.00031443,2]
[377285797,1754320233114,-151.0,0.00031443,2]
[377285799,1754320233124,-151.0,0.00031443,2]
[377285801,1754320233137,-151.0,0.00031443,2]
[377285803,1754320233147,-151.0,0.00031443,2]
[377285805,1754320233157,-151.0,0.00031443,2]
[377285807,1754320233169,-151.0,0.00031443,2]
[377285809,1754320233179,-151.0,0.00031443,2]
[377285811,1754320233189,-151.0,0.00031443,2]
[377285813,1754320233200,-151.0,0.00031443,2]
[377285815,1754320233212,-151.0,0.00031443,2]
[377285817,1754320233223,-151.0,0.00031443,2]
[377285819,1754320233232,-151.0,0.00031443,2]
[377285821,1754320233242,-151.0,0.00031443,2]
[377285823,1754320233253,-151.0,0.00031443,2]
[377285826,1754320233263,-151.0,0.00031443,2]
[377285828,1754320233272,-151.0,0.00031443,2]
[377285830,1754320233282,-151.0,0.00031443,2]
[377285832,1754320233292,-118.80282653,0.00031443,2]
[377285847,1754320233431,-32.19717347,0.00031443,2]
[377285849,1754320233441,-151.0,0.00031443,2]
[377285851,1754320233451,-96.24305521,0.00031443,2]
[377285853,1754320233462,-54.75694479,0.00031443,2]
[377285855,1754320233472,-151.0,0.00031443,2]
[377285857,1754320233483,-151.0,0.00031443,2]
[377285859,1754320233493,-143.83806521,0.00031443,2]
[377285864,1754320233526,-500.0,0.00030759,2]
[377285866,1754320233536,-52.3362467,0.00030759,2]
[377285868,1754320233549,-447.6637533,0.00030759,2]
[377285870,1754320233559,-7.16193479,0.00031443,2]
[377285872,1754320233568,-151.0,0.00031443,2]
[377285874,1754320233578,-151.0,0.00031443,2]
[377285876,1754320233588,-151.0,0.00031443,2]
[377285877,1754320233598,-151.0,0.00031443,2]
[377285878,1754320233607,-151.0,0.00031443,2]
[377285879,1754320233617,-151.0,0.00031443,2]
[377285880,1754320233626,-151.0,0.00031443,2]
[377285881,1754320233638,-151.0,0.00031443,2]
[377285882,1754320233647,-151.0,0.00031443,2]
[377285883,1754320233657,-151.0,0.00031443,2]
[377285884,1754320233667,-151.0,0.00031443,2]
[377285885,1754320233677,-151.0,0.00031443,2]
[377285886,1754320233687,-151.0,0.00031443,2]
[377285887,1754320233696,-151.0,0.00031443,2]
[377285888,1754320233705,-151.0,0.00031443,2]
[377285889,1754320233715,-151.0,0.00031443,2]
[377285890,1754320233725,-151.0,0.00031443,2]
[377285891,1754320233734,-151.0,0.00031443,2]
[377285892,1754320233744,-151.0,0.00031443,2]